Cogmind - Beta 15 @@@ ROGUE MODE // 2025.05.04 @ 05:58:56 Player: Sylvia Result: Destroyed by as-56030 with Assembled Maul Performance ------------- Evolutions (0) 0 Regions Visited (2) 400 Robots Destroyed (18) 90 Value Destroyed (329) 329 Prototype IDs (4) 80 Alien Tech Used (0) 0 Bonus (0) 0 TOTAL SCORE: 899 Bonus ------- None Cogmind --------- Core Integrity 0/250 Matter 297/300 Energy 100/100 System Corruption 13% Temperature Cool (8) Movement Walking (190) Ox1 Location -10/Mines Parts ------- > --- POWER (1) -------- (None) > --- PROPULSION (2) --- Aluminum Leg > --- UTILITY (2) ------ Medium Storage Unit > --- WEAPON (2) ------- Heavy EM Pulse Gun Light Assault Rifle > --- INVENTORY (10) --- Light Ion Engine Light Treads Light Treads Aluminum Leg Large Storage Unit Heavy EM Pulse Gun Light Assault Rifle Light Assault Rifle Light Assault Rifle Grenade Launcher Peak State ------------ > --- POWER ------------ Ion Engine > --- PROPULSION ------- Aluminum Leg Aluminum Leg > --- UTILITY ---------- Small Storage Unit Structural Scanner > --- WEAPON ----------- Heavy EM Pulse Gun Light Assault Rifle > --- INVENTORY -------- Ion Engine Light Treads Light Treads Heavy EM Pulse Gun Heavy EM Pulse Gun Light Assault Rifle Light Assault Rifle Grenade Launcher [Rating: 9] Favorites ----------- Power Ion Engine Engine Ion Engine Propulsion Aluminum Leg Leg Aluminum Leg Utility Structural Scanner Device Structural Scanner Storage Medium Storage Unit Weapon Light Assault Rifle Energy Gun Heavy EM Pulse Gun Ballistic Gun Light Assault Rifle Launcher Grenade Launcher Build | -11 -10 -10 ------- Run | Yrd Mat Min Slots Evolved . | . . . Power . | . . . Propulsion . | . . . Utility . | . . . Weapon . | . . . Parts Attached 11 | . 6 5 Power 1 | . . 1 Engine 1 | . . 1 Core . | . . . Reactor . | . . . Propulsion 2 | . . 2 Treads . | . . . Leg 2 | . . 2 Wheel . | . . . Hover . | . . . Flight . | . . . Utility 2 | . 2 . Device 1 | . 1 . Storage 1 | . 1 . Processor . | . . . Hackware . | . . . Protection . | . . . Artifact . | . . . Weapon 6 | . 4 2 Energy Gun 4 | . 3 1 Energy Cannon . | . . . Ballistic Gun 1 | . . 1 Ballistic Cannon . | . . . Launcher 1 | . 1 . Special Weapon . | . . . Impact Weapon . | . . . Slashing Weapon . | . . . Piercing Weapon . | . . . Special Melee Weapon . | . . . Unidentified Prototypes . | . . . Corrupted Parts 1 | . . 1 System Corruption 2 | . . 2 Parts Lost 6 | . 1 5 Power 1 | . . 1 Propulsion 2 | . . 2 Utility 1 | . . 1 Weapon 2 | . 1 1 Highest Loss Streak 3 | . 1 3 To Critical Strikes . | . . . Average Backups 8 | 5 7 9 Power 1 | 1 1 1 Propulsion 2 | 3 2 2 Utility . | . . 1 Weapon 4 | 1 3 4 Tool/Special . | . . . Unused Backups 15 | . 4 11 Power 3 | . . 3 Propulsion 1 | . . 1 Utility 3 | . 2 1 Weapon 8 | . 2 6 Tool/Special . | . . . Average Slot Usage (%) 98 | . 98 98 Engine 14 | . 14 14 Leg 27 | . 28 27 Device 13 | . 12 13 Storage 14 | . 14 14 Energy Gun 13 | . 13 13 Ballistic Gun 14 | . 14 14 Peak Build Rating 9 | 6 9 9 Average Rating 8 | 6 8 8 On Entrance 7 | 6 6 9 Naked Turns . | . . . Heaviest Build 20 | 12 20 20 Greatest Support 20 | 20 20 20 Greatest Overweight (x) 1 | . . 1 Average Overweight (x) . | . . . Largest Inventory Capacity 10 | 8 10 10 Average Capacity 9 | 8 8 10 Most Carried 10 | 5 8 10 Average Carried 8 | 4 7 9 Final Capacity 10 | 8 10 10 Final Carried 10 | 4 8 10 Class Distribution -------------------- 100% | Mutant Dominant Class ---------------- Mutant | -10/Materials Mutant | -10/Mines Resources | -11 -10 -10 ----------- Run | Yrd Mat Min Matter Collected 474 | 199 44 231 Remotely . | . . . Salvage Created 486 | . 187 299 Parts 30 | . 8 22 Haulers Intercepted . | . . . Recyclers Shooed 2 | . . 2 Parts Field Recycled . | . . . Retrieved Matter . | . . . Parts Self-Destructed . | . . . Prevented . | . . . Kills | -11 -10 -10 ------- Run | Yrd Mat Min Combat Hostiles Destroyed 15 | . 6 9 Guns 7 | . 3 4 AOE 8 | . 3 5 Classes Destroyed 6 | . 3 3 Worker 1 | . . 1 Tunneler 1 | . 1 . Recycler 2 | . . 2 Swarmer 9 | . 3 6 Grunt 5 | . 3 2 Assembled 1 | . . 1 Best Kill Streak 7 | . 5 7 Combat Bots Only 4 | . 4 4 Max Kills in Single Turn 3 | . 2 3 Gunslinging . | . . . Exploded 2 | . 1 2 Melee . | . . . Uniques/NPCs Destroyed . | . . . Combat | -11 -10 -10 -------- Run | Yrd Mat Min Hostile Shots Fired 79 | . 23 56 Missed 23 | . 6 17 Hits 56 | . 17 39 Melee 12 | . . 12 Projectile 44 | . 17 27 Critical Strikes 2 | . . 2 Damage Taken 954 | . 247 707 Core 255 | . 27 228 Absorbed by Shields . | . . . Core Remaining (%) 100 | 100 . . Volleys Fired 43 | . 15 28 Largest 2 | . 2 2 Hottest 65 | . 65 65 Shots Fired 78 | . 26 52 Gun 71 | . 23 48 Cannon . | . . . Launcher 7 | . 3 4 Special . | . . . Kinetic 36 | . 12 24 Thermal . | . . . Explosive 7 | . 3 4 Electromagnetic 35 | . 11 24 Robot Hit Streak 9 | . 9 8 Robot Miss Streak 3 | . 2 3 Penetration Max . | . . . Secondary Targets 1 | . . 1 Max Gunslinging Chain 1 | . . 1 Shots Hit Robots 54 | . 18 36 Core Hits 31 | . 13 18 Critical Kills . | . . . Critical Parts Destroyed . | . . . Critical Strikes . | . . . Melee Attacks . | . . . Impact . | . . . Slashing . | . . . Piercing . | . . . Sneak Attacks . | . . . Combat Hostiles . | . . . Follow-up Attacks . | . . . Damage Inflicted 1352 | . 589 763 Guns 564 | . 201 363 Cannons . | . . . Explosions 780 | . 388 392 Melee . | . . . Ramming 8 | . . 8 Kinetic 206 | . 69 137 Thermal 31 | . 31 . Explosive 749 | . 357 392 Electromagnetic 358 | . 132 226 Impact . | . . . Slashing . | . . . Piercing . | . . . Highest Corruption 9 | . . 9 Average Corruption 2 | . . 2 Corruption Purged . | . . . Corruption Blocked . | . . . Effects 5 | . . 5 Matter Fused 4 | . . 4 Energy Discharges 1 | . . 1 Overload Shots . | . . . Overflow Damage 28 | . 15 13 Projectiles . | . . . Explosions 28 | . 15 13 Melee . | . . . Knockbacks . | . . . Impact . | . . . Kinetic . | . . . Secondary . | . . . Self-Inflicted Damage 90 | . 39 51 Shots 4 | . 2 2 Rammed . | . . . Targets Rammed 1 | . . 1 Kicked 1 | . . 1 Crushed . | . . . Highest Temperature 128 | . 92 128 Average Temperature 46 | . 45 46 Received Heat Transfer 204 | . 96 108 Siege Activations . | . . . Martial Activations . | . . . Shielding Activations . | . . . Robots Disrupted . | . . . Combat Hostiles . | . . . Robots Corrupted . | . . . Combat Hostiles . | . . . Parts Fried . | . . . Impact Corruptions . | . . . Robots Melted . | . . . Combat Hostiles . | . . . Parts Melted . | . . . Heat Transferred 50 | . 50 . Parts Sabotaged . | . . . Parts Stolen . | . . . Parts Stripped . | . . . Power Chain Reactions 1 | . 1 . Alert | -11 -10 -10 ------- Run | Yrd Mat Min Maximum Alert Level 1 | . . 1 Low Security (%) 93 | 100 100 86 Level 1 6 | . . 13 Level 2 . | . . . Level 3 . | . . . Level 4 . | . . . Level 5 . | . . . High Security . | . . . Max Security . | . . . Peak Influence 218 | . 147 218 Initial 35 | . . 35 Average 107 | . 57 151 Influence Increases 476 | . 213 263 Destroy 0b10 Robot/C 280 | . 120 160 Destroy 0b10 Robot/NC 20 | . 5 15 Destroy Leader 60 | . 30 30 Successful Hack 26 | . 26 . Disable Machine 15 | . . 15 Destroy Structure 45 | . 17 28 Lose Combat Pursuer 30 | . 15 15 Influence Decreases 426 | . 122 304 Entered New Map 56 | . . 56 Time Decay 320 | . 122 198 Lost Part 50 | . . 50 Squads Dispatched . | . . . Investigation . | . . . Extermination . | . . . Reinforcement . | . . . Assault . | . . . Garrison . | . . . Intercept . | . . . Searches Triggered . | . . . Construction Impeded . | . . . Haulers Reinforced . | . . . Active Scanning Responses . | . . . Cargo Convoy Interrupts . | . . . Stealth | -11 -10 -10 --------- Run | Yrd Mat Min Distress Signals . | . . . Communications Jammed . | . . . Distress Signals . | . . . Times Spotted 33 | . 8 25 Peak Tracking Total 17 | . 4 17 Tactical Retreats 4 | . 1 3 Traps | -11 -10 -10 ------- Run | Yrd Mat Min Traps Triggered . | . . . Indirectly . | . . . Trap Hack Attempts . | . . . Triggered . | . . . Disarmed . | . . . Reprogrammed . | . . . Reused . | . . . Traps Extracted . | . . . Installed . | . . . Triggered . | . . . Machines | -11 -10 -10 ---------- Run | Yrd Mat Min Machines Disabled 1 | . . 1 Max in Single Turn 1 | . . 1 Machines Repaired . | . . . Machines Dismantled . | . . . Machines Sabotaged . | . . . Overloaded Fab Kills . | . . . Hacking | -11 -10 -10 --------- Run | Yrd Mat Min Machines Accessed 5 | . 5 . Terminals 5 | . 5 . Fabricators . | . . . Repair Stations . | . . . Recycling Units . | . . . Scanalyzers . | . . . Garrison Access . | . . . Total Hacks 11 | . 11 . Successful 4 | . 4 . Failed 7 | . 7 . Catastrophic 2 | . 2 . Database Lockouts . | . . . Manual 1 | . 1 . Terminals 11 | . 11 . Fabricators . | . . . Repair Stations . | . . . Recycling Units . | . . . Scanalyzers . | . . . Garrison Access . | . . . Terminal Hacks 4 | . 4 . Prototype ID Bank 2 | . 2 . Branch Access Points 1 | . 1 . Hauler Manifests 1 | . 1 . Fabricator Hacks . | . . . Repair Station Hacks . | . . . Recycling Unit Hacks . | . . . Scanalyzer . | . . . Garrison Access Hacks . | . . . Unauthorized Hacks . | . . . Terminals . | . . . Fabricators . | . . . Repair Stations . | . . . Recycling Units . | . . . Scanalyzers . | . . . Garrison Access . | . . . Data Cores Recovered . | . . . Used . | . . . Hacking Detections 5 | . 5 . Full Trace Events 1 | . 1 . Feedback Events . | . . . Feedback Blocked . | . . . Robot Schematics Acquired . | . . . Robots Built . | . . . Authchips . | . . . Time . | . . . Total Robot Build Rating . | . . . Part Schematics Acquired . | . . . Parts Built . | . . . Authchips . | . . . Time . | . . . Total Part Build Rating . | . . . Parts Repaired . | . . . Time . | . . . Parts Recycled . | . . . Recycled Matter . | . . . Retrieved Matter . | . . . Retrieved Components . | . . . Parts Scanalyzed . | . . . Part Schematics Acquired . | . . . Parts Damaged . | . . . Bothacking | -11 -10 -10 ------------ Run | Yrd Mat Min Used RIF Installer . | . . . Robots Hacked . | . . . Non-combat . | . . . Combat . | . . . Robot Hacks Applied . | . . . Relay Couplers Released . | . . . Fabnet Peak Effective % . | . . . Robots Rewired . | . . . Allies Hacked . | . . . Hacks Repelled . | . . . Allies | -11 -10 -10 -------- Run | Yrd Mat Min Total Allies . | . . . Largest Group . | . . . Highest-Rated Group . | . . . Highest-Rated Ally . | . . . Total Orders . | . . . Ally Attacks . | . . . Total Damage . | . . . Kills . | . . . Allies Corrupted . | . . . Allies Melted . | . . . Intel | -11 -10 -10 ------- Run | Yrd Mat Min Active Infowar (turns) 721 | . 333 388 Structural 721 | . 333 388 Robot Analysis Total . | . . . Derelict Logs Recovered . | . . . Drone Launches . | . . . Drone Recoveries . | . . . Exploration | -11 -10 -10 ------------- Run | Yrd Mat Min Turns Passed 759 | 2 355 402 Spaces Moved 475 | 1 232 242 Core . | . . . Treads . | . . . Legs 475 | 1 232 242 Wheels . | . . . Hover . | . . . Flight . | . . . Fastest Speed 120 | 120 120 120 Average Speed 120 | 120 120 121 Slowest Speed 190 | 120 120 190 Overloaded Moves . | . . . Propulsion Burnouts . | . . . Robots Hopped . | . . . Potential Cave-ins . | . . . Cave-ins Triggered . | . . . Exploration Rate (%) 34 | 2 45 57 Regions Visited 2 Branch Regions 1 Pre-discovered Areas . | . . . Known Exits Taken 1 | . 1 . Unknown Exits Taken 1 | 1 . . Scrap Searched 1 | . . 1 Spaces Dug . | . . . Terrain Destroyed 50 | . 17 33 Melee . | . . . Projectile . | . . . AOE 50 | . 17 33 Terrain Rammed . | . . . Walls Destroyed . | . . . Machines Disabled . | . . . Actions | -11 -10 -10 --------- Run | Yrd Mat Min Total 588 | 2 285 301 Wait 35 | . 21 14 Move 473 | . 231 242 Hop . | . . . Pick Up 10 | . 6 4 Fast Attach 5 | . 2 3 Attach 2 | . 1 1 Detach 1 | . 1 . Swap 10 | . 4 6 Drop 8 | 2 4 2 Fire 43 | . 15 28 Melee . | . . . Ram . | . . . Kick 1 | . . 1 Crush . | . . . Escape Stasis . | . . . Rewire . | . . . Trap . | . . . Miscellaneous . | . . . Route ------- -11/Scrapyard -10/Materials -10/Mines History --------- Turn | Location | Event 3 | -11/Scrapyard | Discovered new exit (range 0) 3 | -11/Scrapyard | Entered Materials 77 | -10/Materials | Identified exit to Mines 305 | -10/Materials | Build established: Mutant 358 | -10/Materials | Entered Mines 699 | -10/Mines | Assembled infested the area 742 | -10/Mines | Core integrity fell below 50% 755 | -10/Mines | Core integrity fell below 20% 760 | -10/Mines | Destroyed by as-56030 with Assembled Maul Last Messages --------------- 00707_ as-80446 destroyed. 00715_ Knocked back. 00715_ T-07 Excavator destroyed. 00715_ Acquired 9 matter. 00726_ Knocked back. 00726_ K-01 Serf collects debris. 00737_ Kicked as-14628. 00739_ Acquired 1 matter. 00739_ Knocked back. 00739_ as-84829 destroyed. 00746_ Structural Scanner destroyed. 00746_ System corrupted by crushing effect (+3). 00752_ Aluminum Leg destroyed. 00752_ System corrupted by crushing effect (+4). 00752_ Destroyed Asb. Hover Unit. 00753_ System corrupted: Matter fused (-6). 00755_ as-14628 destroyed. 00755_ Switching to secondary target: as-50685. 00760_ Ion Engine destroyed. 00760_ System corrupted by crushing effect (+4). Map ----- +----------------------------------------------------+ | ???????????????????????????????### ## ###### | | ???????????????????????????????#### ########### | | ????????????????????????????????### ########?## | | ?????????????????????????????????## ##???????## | | ?????????????????????????????????## ###??????# | | ?????????????????????????????????## ####?????? | | ?????????????????????????????????## ####????? | | ?????????????????????????????????## ####???# # | | ?????????????????????????????????## ###???## # | | ?????????????????????????????????### ##???## # | | ?????????????????????????????####### ##???## # | | ????????????????????????????####### ##???## # | | ????????????????????????????### ###???## | | ????????????????????????????## ####???## # | | ????????????????????????????## ####????## # | | ????????????????????????????### ####?###### # | | ??????????????????????????########## ###??###### # | | ??????????????????????? ########## ##???## # | | ???????????????????????## ! [##???## ##### | | ???????????????????????###########%######### #### | | ??????????????????????????######## ######### ### | | ????????????????????????????????## ##?## ### | | ???????????????????????????####### ##### ### #### | | ?????????????? # ################%##### ### ##### | | ??????????????## ########### #### ### ##### | | ??????????????## a a@a #### ######### ##### | | ??????????????##$ ########## ### ######### ##### | | ??????????????## ########### ######## # | | ??????????????## ## | | ??????????????########## ## ## | | ????????????????######## ## #### # | | ??????????????????????## ##### ###### ## | | ?????????????????????### ###### ######## ## | | ????????????????????####=####### ######### ### | | ???????????????????####!%=##?########?#### #### | | ??????????????????#### ###??######??### #### | | ?????????????????#### ####??????????## # | | ????????????????#### ###???????????## # | | ????## ####????### ###???????????### ### # | | ????## ### ?##### """ ###?????????####### ### | | ????## % #### """ ##########?####### ##### | | ????## """ ############# ##### | | ?? < #### ##### ##??# | | ??## ### #### #### #######??# | | ??## #### ## #######??# | | ??### #### ####?????# | | ???#### #### #### """ ####???# | | ?????### ##### ###### """ ####?# | | ?????#########?### ######### """ #### | | ??????######???########??##### """ ## ### | +----------------------------------------------------+ Best States ------------- Heat Dissipation 25 Energy Generation 10 Energy Capacity 250 Matter Stores 300 Matter Capacity 300 Sight Range 16 Terrain Scan Density 10 Evasion (%) 55 Item Schematics ----------------- None Robot Schematics ------------------ None Fabricated ------------ Nothing Repaired ---------- Nothing Alien Tech Used ----------------- None Achievements -------------- None Challenges ------------ None Game ------ Seed ColdWaveCasing Manual? 0 Play Time 00:11:48 Cumulative 89.1 hours Start 2025.05.04 @ 05:48:11 End 2025.05.04 @ 05:58:56 Sessions 1 Manual Loads 0 Difficulty Rogue Special Mode None Game No. 62 Rogue 59 Adventurer 3 Explorer 0 Win Type - Total 8 Types 7/1/0/0/0/0/0/0/0/0 Lore% 36 Gallery% 44 Achievement% 49 Wizard Run 0 Options --------- Layout 0 ASCII 1 Keyboard 1 Movement Vi Keybinds 0 Fullscreen 2 Font 18/SmallcapsGlow Map View 76x50 Zoom Use 0% Tactical HUD 1 Map Filters NONE Filters NONE Steam 1 RUN: ab4c1ebe-2a9e-4f2a-9f5e-4c9e9f6d11b8